[Event "Titled Tuesday Blitz November 07 Early 2023"]
[White "Kotlyar, Kirill"]
[Black "Shishkov, Andrei"]
[WhiteFideId "24145599"]
[BlackFideId "4500563"]
[WhiteElo "2541"]
[BlackElo "2458"]
[Result "1-0"]
[Round "9"]
[TimeControl "180+1"]
[Date "2023.11.07"]
[WhiteClock "0:00:20"]
[BlackClock "0:00:00"]
[Board "86"]

1. c4 {[%clk 0:02:57]}  e5 {[%clk 0:02:59]} 2. Nc3 {[%clk 0:02:54]}  Bb4 {[%clk 0:02:59]} 3. Nd5 {[%clk 0:02:51]}  a5 {[%clk 0:02:59]} 4. a3 {[%clk 0:02:50]}  Be7 {[%clk 0:02:58]} 5. g3 {[%clk 0:02:40]}  Nf6 {[%clk 0:02:58]} 6. Bg2 {[%clk 0:02:32]}  O-O {[%clk 0:02:52]} 7. d3 {[%clk 0:02:26]}  c6 {[%clk 0:02:39]} 8. Nxe7+ {[%clk 0:01:58]}  Qxe7 {[%clk 0:02:40]} 9. Nf3 {[%clk 0:01:48]}  d5 {[%clk 0:02:33]} 10. cxd5 {[%clk 0:01:49]}  cxd5 {[%clk 0:02:34]} 11. O-O {[%clk 0:01:49]}  Nc6 {[%clk 0:02:28]} 12. Bg5 {[%clk 0:01:33]}  h6 {[%clk 0:02:28]} 13. Bxf6 {[%clk 0:01:32]}  Qxf6 {[%clk 0:02:29]} 14. Nd2 {[%clk 0:01:33]}  Rd8 {[%clk 0:02:22]} 15. e3 {[%clk 0:01:31]}  Qe7 {[%clk 0:02:05]} 16. Qb3 {[%clk 0:01:29]}  Be6 {[%clk 0:02:05]} 17. Qa4 {[%clk 0:01:05]}  Rab8 {[%clk 0:01:53]} 18. Qb5 {[%clk 0:01:03]}  Qd7 {[%clk 0:01:16]} 19. Nb3 {[%clk 0:00:49]}  b6 {[%clk 0:01:09]} 20. Rac1 {[%clk 0:00:43]}  Rdc8 {[%clk 0:01:09]} 21. Rc2 {[%clk 0:00:25]}  Ne7 {[%clk 0:00:35]} 22. Qxd7 {[%clk 0:00:19]}  Bxd7 {[%clk 0:00:36]} 23. Rfc1 {[%clk 0:00:19]}  Rxc2 {[%clk 0:00:35]} 24. Rxc2 {[%clk 0:00:20]}  Rc8 {[%clk 0:00:35]} 25. Rxc8+ {[%clk 0:00:20]}  Bxc8 {[%clk 0:00:36]} 26. d4 {[%clk 0:00:20]}  f6 {[%clk 0:00:30]} 27. Bf1 {[%clk 0:00:21]}  Kf7 {[%clk 0:00:29]} 28. f3 {[%clk 0:00:21]}  Ke6 {[%clk 0:00:26]} 29. Kf2 {[%clk 0:00:21]}  Kd6 {[%clk 0:00:25]} 30. Ke1 {[%clk 0:00:21]}  Bd7 {[%clk 0:00:24]} 31. Kd2 {[%clk 0:00:21]}  Ba4 {[%clk 0:00:24]} 32. Nc1 {[%clk 0:00:22]}  Nc6 {[%clk 0:00:18]} 33. Kc3 {[%clk 0:00:22]}  Na7 {[%clk 0:00:16]} 34. b3 {[%clk 0:00:20]}  Bb5 {[%clk 0:00:16]} 35. Bg2 {[%clk 0:00:20]}  h5 {[%clk 0:00:15]} 36. a4 {[%clk 0:00:21]}  Ba6 {[%clk 0:00:15]} 37. f4 {[%clk 0:00:19]}  e4 {[%clk 0:00:13]} 38. b4 {[%clk 0:00:19]}  Bc4 {[%clk 0:00:12]} 39. b5 {[%clk 0:00:19]}  Nc8 {[%clk 0:00:12]} 40. Bh3 {[%clk 0:00:20]}  Ne7 {[%clk 0:00:12]} 41. Bg2 {[%clk 0:00:20]}  g6 {[%clk 0:00:12]} 42. Bxe4 {[%clk 0:00:20]}  dxe4 {[%clk 0:00:10]} 43. Kxc4 {[%clk 0:00:20]}  Nd5 {[%clk 0:00:10]} 44. Ne2 {[%clk 0:00:18]}  Nxe3+ {[%clk 0:00:10]} 45. Kc3 {[%clk 0:00:19]}  Nd5+ {[%clk 0:00:10]} 46. Kd2 {[%clk 0:00:20]}  f5 {[%clk 0:00:10]} 47. h4 {[%clk 0:00:19]}  Nb4 {[%clk 0:00:07]} 48. Nc3 {[%clk 0:00:19]}  Nd5 {[%clk 0:00:07]} 49. Nd1 {[%clk 0:00:19]}  Nc7 {[%clk 0:00:07]} 50. Ne3 {[%clk 0:00:19]}  Ne6 {[%clk 0:00:07]} 51. Kc3 {[%clk 0:00:19]}  Nc7 {[%clk 0:00:08]} 52. Nc4+ {[%clk 0:00:19]}  Ke6 {[%clk 0:00:05]} 53. Nxb6 {[%clk 0:00:19]}  Ke7 {[%clk 0:00:03]} 54. Kd2 {[%clk 0:00:18]}  Kd6 {[%clk 0:00:02]} 55. Nc4+ {[%clk 0:00:19]}  Kd5 {[%clk 0:00:03]} 56. Nxa5 {[%clk 0:00:19]}  Kxd4 {[%clk 0:00:03]} 57. Nc6+ {[%clk 0:00:20]}  Kc5 {[%clk 0:00:03]} 58. Ne7 {[%clk 0:00:20]}  Ne6 {[%clk 0:00:00]} 59. Nxg6 {[%clk 0:00:20]} 1-0


[Site "https://www.chess.com"]

[Event "Titled Tuesday Blitz November 07 Early 2023"]
[White "Slade, Theodore"]
[Black "lagunanivaria"]
[WhiteFideId "426547"]
[WhiteElo "2537"]
[BlackElo "2454"]
[Result "1-0"]
[Round "9"]
[TimeControl "180+1"]
[Date "2023.11.07"]
[WhiteClock "0:01:00"]
[BlackClock "0:00:18"]
[Board "87"]

1. d4 {[%clk 0:03:00]}  Nf6 {[%clk 0:02:56]} 2. c4 {[%clk 0:03:01]}  e6 {[%clk 0:02:55]} 3. g3 {[%clk 0:03:01]}  c5 {[%clk 0:02:52]} 4. d5 {[%clk 0:03:01]}  exd5 {[%clk 0:02:52]} 5. cxd5 {[%clk 0:03:02]}  d6 {[%clk 0:02:52]} 6. Nc3 {[%clk 0:03:03]}  g6 {[%clk 0:02:52]} 7. Bg2 {[%clk 0:03:03]}  Bg7 {[%clk 0:02:52]} 8. Nf3 {[%clk 0:03:04]}  O-O {[%clk 0:02:52]} 9. O-O {[%clk 0:03:05]}  Re8 {[%clk 0:02:53]} 10. Bf4 {[%clk 0:03:05]}  a6 {[%clk 0:02:51]} 11. a4 {[%clk 0:03:05]}  Qe7 {[%clk 0:02:47]} 12. Re1 {[%clk 0:02:59]}  Nbd7 {[%clk 0:02:43]} 13. Nd2 {[%clk 0:02:52]}  Nh5 {[%clk 0:02:37]} 14. Nc4 {[%clk 0:02:50]}  Nxf4 {[%clk 0:02:31]} 15. gxf4 {[%clk 0:02:51]}  Rb8 {[%clk 0:02:30]} 16. a5 {[%clk 0:02:50]}  b5 {[%clk 0:01:45]} 17. axb6 {[%clk 0:02:49]}  Nxb6 {[%clk 0:01:45]} 18. Nxb6 {[%clk 0:02:49]}  Rxb6 {[%clk 0:01:45]} 19. Qd2 {[%clk 0:02:40]}  Qb7 {[%clk 0:01:39]} 20. Ra2 {[%clk 0:02:30]}  Bd7 {[%clk 0:01:38]} 21. e3 {[%clk 0:02:24]}  Rb8 {[%clk 0:01:36]} 22. Rb1 {[%clk 0:02:21]}  Rb4 {[%clk 0:01:27]} 23. Bf1 {[%clk 0:02:15]}  Bf5 {[%clk 0:01:18]} 24. Bd3 {[%clk 0:02:10]}  Bxd3 {[%clk 0:01:16]} 25. Qxd3 {[%clk 0:02:10]}  Rb3 {[%clk 0:01:15]} 26. Rba1 {[%clk 0:01:57]}  Rxb2 {[%clk 0:01:15]} 27. Rxb2 {[%clk 0:01:51]}  Qxb2 {[%clk 0:01:14]} 28. Rb1 {[%clk 0:01:52]}  Bxc3 {[%clk 0:01:00]} 29. Rxb2 {[%clk 0:01:52]}  Bxb2 {[%clk 0:01:01]} 30. Qxa6 {[%clk 0:01:52]}  Rd8 {[%clk 0:00:58]} 31. Qb6 {[%clk 0:01:52]}  Bf6 {[%clk 0:00:57]} 32. e4 {[%clk 0:01:47]}  Be7 {[%clk 0:00:51]} 33. Qc7 {[%clk 0:01:45]}  Kf8 {[%clk 0:00:48]} 34. Kg2 {[%clk 0:01:42]}  f6 {[%clk 0:00:43]} 35. Kf3 {[%clk 0:01:42]}  Ra8 {[%clk 0:00:41]} 36. e5 {[%clk 0:01:39]}  Ra3+ {[%clk 0:00:36]} 37. Kg2 {[%clk 0:01:39]}  fxe5 {[%clk 0:00:28]} 38. fxe5 {[%clk 0:01:39]}  dxe5 {[%clk 0:00:22]} 39. d6 {[%clk 0:01:37]}  Bf6 {[%clk 0:00:22]} 40. Qc8+ {[%clk 0:01:24]}  Kg7 {[%clk 0:00:20]} 41. Qxc5 {[%clk 0:01:22]}  Rd3 {[%clk 0:00:19]} 42. Qc7+ {[%clk 0:01:20]}  Kh6 {[%clk 0:00:19]} 43. d7 {[%clk 0:01:16]}  e4 {[%clk 0:00:19]} 44. Qf4+ {[%clk 0:01:11]}  Bg5 {[%clk 0:00:19]} 45. Qf8+ {[%clk 0:01:05]}  Kh5 {[%clk 0:00:19]} 46. Qe8 {[%clk 0:01:04]}  e3 {[%clk 0:00:18]} 47. fxe3 {[%clk 0:01:00]}  Kg4 {[%clk 0:00:18]} 48. Qe4+ {[%clk 0:01:00]}  Kh5 {[%clk 0:00:17]} 49. Qxd3 {[%clk 0:01:01]}  h6 {[%clk 0:00:18]} 50. Qe2+ {[%clk 0:01:00]}  Kh4 {[%clk 0:00:18]} 51. h3 {[%clk 0:00:59]}  h5 {[%clk 0:00:18]} 52. Qf2# {[%clk 0:01:00]} 1-0


[Site "https://www.chess.com"]

[Event "Titled Tuesday Blitz November 07 Early 2023"]
[White "Alinasab, Mobina"]
[Black "ExchangeAB"]
[WhiteFideId "12528897"]
[WhiteElo "2530"]
[BlackElo "2447"]
[Result "1-0"]
[Round "9"]
[TimeControl "180+1"]
[Date "2023.11.07"]
[WhiteClock "0:02:03"]
[BlackClock "0:01:40"]
[Board "88"]

1. e4 {[%clk 0:03:00]}  c6 {[%clk 0:02:59]} 2. d4 {[%clk 0:03:00]}  d5 {[%clk 0:03:00]} 3. Nd2 {[%clk 0:02:58]}  dxe4 {[%clk 0:02:56]} 4. Nxe4 {[%clk 0:02:59]}  Bf5 {[%clk 0:02:56]} 5. Ng3 {[%clk 0:02:58]}  Bg6 {[%clk 0:02:56]} 6. Nf3 {[%clk 0:02:58]}  Nd7 {[%clk 0:02:55]} 7. h4 {[%clk 0:02:58]}  h6 {[%clk 0:02:55]} 8. Bd3 {[%clk 0:02:57]}  Bxd3 {[%clk 0:02:55]} 9. Qxd3 {[%clk 0:02:58]}  e6 {[%clk 0:02:56]} 10. Bf4 {[%clk 0:02:58]}  Qa5+ {[%clk 0:02:56]} 11. Bd2 {[%clk 0:02:56]}  Qc7 {[%clk 0:02:55]} 12. O-O-O {[%clk 0:02:56]}  Ngf6 {[%clk 0:02:56]} 13. Kb1 {[%clk 0:02:56]}  Bd6 {[%clk 0:02:55]} 14. Ne4 {[%clk 0:02:55]}  Nxe4 {[%clk 0:02:55]} 15. Qxe4 {[%clk 0:02:56]}  Nf6 {[%clk 0:02:55]} 16. Qd3 {[%clk 0:02:56]}  O-O-O {[%clk 0:02:55]} 17. c3 {[%clk 0:02:55]}  Rhe8 {[%clk 0:02:52]} 18. Qe2 {[%clk 0:02:54]}  Kb8 {[%clk 0:02:51]} 19. Ne5 {[%clk 0:02:54]}  Bxe5 {[%clk 0:02:50]} 20. dxe5 {[%clk 0:02:55]}  Ng8 {[%clk 0:02:50]} 21. h5 {[%clk 0:02:51]}  Rd7 {[%clk 0:02:45]} 22. Bf4 {[%clk 0:02:51]}  Red8 {[%clk 0:02:44]} 23. Rxd7 {[%clk 0:02:51]}  Rxd7 {[%clk 0:02:45]} 24. Rd1 {[%clk 0:02:50]}  Qd8 {[%clk 0:02:45]} 25. Rxd7 {[%clk 0:02:48]}  Qxd7 {[%clk 0:02:46]} 26. Kc2 {[%clk 0:02:48]}  Ne7 {[%clk 0:02:45]} 27. c4 {[%clk 0:02:42]}  Qd4 {[%clk 0:02:44]} 28. g3 {[%clk 0:02:32]}  Kc7 {[%clk 0:02:35]} 29. Be3 {[%clk 0:02:28]}  Qe4+ {[%clk 0:02:33]} 30. Qd3 {[%clk 0:02:28]}  Qxd3+ {[%clk 0:02:33]} 31. Kxd3 {[%clk 0:02:29]}  Nf5 {[%clk 0:02:27]} 32. Bxa7 {[%clk 0:02:26]}  b6 {[%clk 0:02:23]} 33. c5 {[%clk 0:02:26]}  b5 {[%clk 0:02:22]} 34. Bb6+ {[%clk 0:02:26]}  Kd7 {[%clk 0:02:19]} 35. b3 {[%clk 0:02:23]}  Ne7 {[%clk 0:02:17]} 36. a4 {[%clk 0:02:23]}  bxa4 {[%clk 0:02:14]} 37. bxa4 {[%clk 0:02:24]}  Kc8 {[%clk 0:02:11]} 38. a5 {[%clk 0:02:20]}  Kb7 {[%clk 0:02:11]} 39. Bd8 {[%clk 0:02:19]}  Nd5 {[%clk 0:02:11]} 40. Ke4 {[%clk 0:02:17]}  Ka6 {[%clk 0:02:11]} 41. g4 {[%clk 0:02:17]}  Kb5 {[%clk 0:02:06]} 42. f4 {[%clk 0:02:15]}  Kxc5 {[%clk 0:01:56]} 43. a6 {[%clk 0:02:14]}  Nb6 {[%clk 0:01:56]} 44. g5 {[%clk 0:02:12]}  Nc8 {[%clk 0:01:48]} 45. gxh6 {[%clk 0:02:07]}  gxh6 {[%clk 0:01:48]} 46. Bg5 {[%clk 0:02:07]}  Kb4 {[%clk 0:01:45]} 47. Bxh6 {[%clk 0:02:06]}  c5 {[%clk 0:01:45]} 48. Bf8 {[%clk 0:02:06]}  Kb5 {[%clk 0:01:44]} 49. Bxc5 {[%clk 0:02:03]}  Kxc5 {[%clk 0:01:44]} 50. h6 {[%clk 0:02:03]}  Ne7 {[%clk 0:01:44]} 51. h7 {[%clk 0:02:02]}  Ng6 {[%clk 0:01:40]} 52. a7 {[%clk 0:02:03]} 1-0


[Site "https://www.chess.com"]

[Event "Titled Tuesday Blitz November 07 Early 2023"]
[White "Toktomushev, Teimur"]
[Black "Kanyamarala, Tarun"]
[WhiteFideId "14176726"]
[BlackFideId "45004714"]
[WhiteElo "2524"]
[BlackElo "2441"]
[Result "0-1"]
[Round "9"]
[TimeControl "180+1"]
[Date "2023.11.07"]
[WhiteClock "0:00:00"]
[BlackClock "0:00:13"]
[Board "91"]

1. d4 {[%clk 0:02:42]}  Nf6 {[%clk 0:02:58]} 2. c4 {[%clk 0:02:43]}  e6 {[%clk 0:02:58]} 3. Nf3 {[%clk 0:02:38]}  b6 {[%clk 0:02:57]} 4. g3 {[%clk 0:02:37]}  Ba6 {[%clk 0:02:56]} 5. b3 {[%clk 0:02:37]}  Bb4+ {[%clk 0:02:51]} 6. Bd2 {[%clk 0:02:36]}  Be7 {[%clk 0:02:51]} 7. Bg2 {[%clk 0:02:37]}  c6 {[%clk 0:02:51]} 8. O-O {[%clk 0:02:36]}  d5 {[%clk 0:02:50]} 9. Bc3 {[%clk 0:02:31]}  Ne4 {[%clk 0:02:39]} 10. Bb2 {[%clk 0:02:26]}  O-O {[%clk 0:02:26]} 11. Nbd2 {[%clk 0:02:25]}  Nxd2 {[%clk 0:02:04]} 12. Nxd2 {[%clk 0:02:14]}  Nd7 {[%clk 0:02:01]} 13. e4 {[%clk 0:02:14]}  dxc4 {[%clk 0:01:57]} 14. Nxc4 {[%clk 0:02:00]}  Bxc4 {[%clk 0:01:48]} 15. bxc4 {[%clk 0:01:59]}  e5 {[%clk 0:01:48]} 16. dxe5 {[%clk 0:01:54]}  Nc5 {[%clk 0:01:42]} 17. Qg4 {[%clk 0:01:41]}  Qc8 {[%clk 0:01:24]} 18. Qe2 {[%clk 0:01:33]}  Ne6 {[%clk 0:01:18]} 19. Rad1 {[%clk 0:01:22]}  Bc5 {[%clk 0:01:11]} 20. Kh1 {[%clk 0:01:18]}  Rd8 {[%clk 0:01:00]} 21. Bh3 {[%clk 0:00:53]}  Qc7 {[%clk 0:00:48]} 22. Bxe6 {[%clk 0:00:40]}  fxe6 {[%clk 0:00:46]} 23. f4 {[%clk 0:00:38]}  a5 {[%clk 0:00:36]} 24. f5 {[%clk 0:00:31]}  exf5 {[%clk 0:00:33]} 25. exf5 {[%clk 0:00:29]}  Rxd1 {[%clk 0:00:33]} 26. Rxd1 {[%clk 0:00:28]}  Qf7 {[%clk 0:00:33]} 27. Qg4 {[%clk 0:00:13]}  g6 {[%clk 0:00:30]} 28. f6 {[%clk 0:00:03]}  h5 {[%clk 0:00:20]} 29. Qg5 {[%clk 0:00:02]}  Kh7 {[%clk 0:00:17]} 30. Re1 {[%clk 0:00:01]}  Re8 {[%clk 0:00:16]} 31. h3 {[%clk 0:00:02]}  Qxc4 {[%clk 0:00:15]} 32. f7 {[%clk 0:00:01]}  Qxf7 {[%clk 0:00:13]} 33. g4 {[%clk 0:00:02]}  Qf3+ {[%clk 0:00:13]} 34. Kh2 {[%clk 0:00:00]}  Qf2+ {[%clk 0:00:13]} 0-1


[Site "https://www.chess.com"]

[Event "Titled Tuesday Blitz November 07 Early 2023"]
[White "Cristi_Coca"]
[Black "Seletsky, Grigory"]
[BlackFideId "14112191"]
[WhiteElo "2430"]
[BlackElo "2520"]
[Result "1/2-1/2"]
[Round "9"]
[TimeControl "180+1"]
[Date "2023.11.07"]
[WhiteClock "0:00:21"]
[BlackClock "0:00:48"]
[Board "93"]

1. e4 {[%clk 0:03:00]}  e6 {[%clk 0:02:58]} 2. d4 {[%clk 0:03:00]}  d5 {[%clk 0:02:58]} 3. Nc3 {[%clk 0:03:01]}  Nc6 {[%clk 0:02:56]} 4. exd5 {[%clk 0:02:58]}  exd5 {[%clk 0:02:55]} 5. Nf3 {[%clk 0:02:57]}  a6 {[%clk 0:02:55]} 6. Bd3 {[%clk 0:02:57]}  Nf6 {[%clk 0:02:53]} 7. Bg5 {[%clk 0:02:54]}  Be7 {[%clk 0:02:53]} 8. O-O {[%clk 0:02:54]}  O-O {[%clk 0:02:53]} 9. h3 {[%clk 0:02:52]}  Be6 {[%clk 0:02:49]} 10. Re1 {[%clk 0:02:49]}  Re8 {[%clk 0:02:35]} 11. Ne2 {[%clk 0:02:48]}  Ne4 {[%clk 0:02:32]} 12. Bxe7 {[%clk 0:02:46]}  Rxe7 {[%clk 0:02:29]} 13. Nf4 {[%clk 0:02:46]}  Nf6 {[%clk 0:02:23]} 14. Nxe6 {[%clk 0:02:43]}  Rxe6 {[%clk 0:02:22]} 15. Rxe6 {[%clk 0:02:43]}  fxe6 {[%clk 0:02:23]} 16. c3 {[%clk 0:02:43]}  Qd6 {[%clk 0:02:22]} 17. Qe2 {[%clk 0:02:39]}  Re8 {[%clk 0:02:22]} 18. Re1 {[%clk 0:02:38]}  Nd8 {[%clk 0:02:17]} 19. Ne5 {[%clk 0:02:38]}  c5 {[%clk 0:02:16]} 20. g4 {[%clk 0:02:20]}  h6 {[%clk 0:02:13]} 21. h4 {[%clk 0:02:19]}  cxd4 {[%clk 0:02:04]} 22. cxd4 {[%clk 0:02:19]}  Nc6 {[%clk 0:01:57]} 23. Nxc6 {[%clk 0:02:13]}  Qxc6 {[%clk 0:01:38]} 24. g5 {[%clk 0:02:12]}  Ne4 {[%clk 0:01:37]} 25. gxh6 {[%clk 0:02:06]}  gxh6 {[%clk 0:01:34]} 26. Bxe4 {[%clk 0:01:44]}  dxe4 {[%clk 0:01:30]} 27. Qxe4 {[%clk 0:01:45]}  Qxe4 {[%clk 0:01:30]} 28. Rxe4 {[%clk 0:01:46]}  Kf7 {[%clk 0:01:31]} 29. Kg2 {[%clk 0:01:40]}  Rc8 {[%clk 0:01:27]} 30. Re2 {[%clk 0:01:39]}  Rc1 {[%clk 0:01:26]} 31. Kf3 {[%clk 0:01:38]}  Rd1 {[%clk 0:01:26]} 32. Ke3 {[%clk 0:01:06]}  Kf6 {[%clk 0:01:17]} 33. Rc2 {[%clk 0:01:04]}  Rb1 {[%clk 0:01:13]} 34. b3 {[%clk 0:01:00]}  a5 {[%clk 0:01:11]} 35. Rc7 {[%clk 0:00:58]}  Rb2 {[%clk 0:01:02]} 36. Rxb7 {[%clk 0:00:56]}  Rxa2 {[%clk 0:01:02]} 37. Rb6 {[%clk 0:00:48]}  Kf5 {[%clk 0:00:57]} 38. d5 {[%clk 0:00:37]}  exd5 {[%clk 0:00:55]} 39. Rxh6 {[%clk 0:00:37]}  Ra3 {[%clk 0:00:56]} 40. Ra6 {[%clk 0:00:29]}  a4 {[%clk 0:00:56]} 41. Rxa4 {[%clk 0:00:27]}  Rxb3+ {[%clk 0:00:57]} 42. Kd4 {[%clk 0:00:24]}  Rf3 {[%clk 0:00:54]} 43. Kxd5 {[%clk 0:00:24]}  Rxf2 {[%clk 0:00:53]} 44. h5 {[%clk 0:00:20]}  Rd2+ {[%clk 0:00:51]} 45. Kc6 {[%clk 0:00:20]}  Kg5 {[%clk 0:00:49]} 46. Ra5+ {[%clk 0:00:20]}  Kh6 {[%clk 0:00:50]} 47. Rd5 {[%clk 0:00:20]}  Rxd5 {[%clk 0:00:48]} 48. Kxd5 {[%clk 0:00:21]}  Kxh5 {[%clk 0:00:48]} 1/2-1/2


[Site "https://www.chess.com"]

[Event "Titled Tuesday Blitz November 07 Early 2023"]
[White "Manukian, Artak"]
[Black "LiadCuba"]
[WhiteFideId "13301373"]
[WhiteElo "2519"]
[BlackElo "2426"]
[Result "1-0"]
[Round "9"]
[TimeControl "180+1"]
[Date "2023.11.07"]
[WhiteClock "0:00:34"]
[BlackClock "0:00:00"]
[Board "94"]

1. e4 {[%clk 0:03:00]}  c5 {[%clk 0:02:58]} 2. Nf3 {[%clk 0:03:00]}  d6 {[%clk 0:02:58]} 3. Bb5+ {[%clk 0:03:00]}  Bd7 {[%clk 0:02:55]} 4. Bxd7+ {[%clk 0:02:59]}  Qxd7 {[%clk 0:02:55]} 5. c4 {[%clk 0:03:00]}  Nf6 {[%clk 0:02:52]} 6. Nc3 {[%clk 0:02:59]}  Nc6 {[%clk 0:02:47]} 7. O-O {[%clk 0:02:58]}  g6 {[%clk 0:02:46]} 8. d4 {[%clk 0:02:57]}  cxd4 {[%clk 0:02:46]} 9. Nxd4 {[%clk 0:02:58]}  Bg7 {[%clk 0:02:43]} 10. Be3 {[%clk 0:02:55]}  Ng4 {[%clk 0:02:33]} 11. Nc2 {[%clk 0:02:36]}  Nxe3 {[%clk 0:02:25]} 12. Nxe3 {[%clk 0:02:37]}  O-O {[%clk 0:02:25]} 13. Qd2 {[%clk 0:02:32]}  Rfc8 {[%clk 0:02:23]} 14. Rad1 {[%clk 0:02:15]}  Qe6 {[%clk 0:02:20]} 15. Ned5 {[%clk 0:02:08]}  Rab8 {[%clk 0:01:56]} 16. f4 {[%clk 0:02:03]}  Bxc3 {[%clk 0:01:41]} 17. Qxc3 {[%clk 0:01:55]}  Qxe4 {[%clk 0:01:30]} 18. Rfe1 {[%clk 0:01:48]}  Qf5 {[%clk 0:01:29]} 19. Rxe7 {[%clk 0:01:42]}  Re8 {[%clk 0:01:12]} 20. Rxe8+ {[%clk 0:01:29]}  Rxe8 {[%clk 0:01:13]} 21. Nf6+ {[%clk 0:01:29]}  Kf8 {[%clk 0:01:11]} 22. Nxe8 {[%clk 0:01:20]}  Kxe8 {[%clk 0:01:12]} 23. g3 {[%clk 0:01:17]}  h5 {[%clk 0:00:48]} 24. Qd3 {[%clk 0:01:06]}  Qxd3 {[%clk 0:00:33]} 25. Rxd3 {[%clk 0:01:06]}  Ke7 {[%clk 0:00:34]} 26. a3 {[%clk 0:01:04]}  Na5 {[%clk 0:00:31]} 27. b3 {[%clk 0:01:03]}  b6 {[%clk 0:00:29]} 28. Kf2 {[%clk 0:01:03]}  Nb7 {[%clk 0:00:28]} 29. b4 {[%clk 0:01:03]}  Nd8 {[%clk 0:00:28]} 30. Ke3 {[%clk 0:00:59]}  Ne6 {[%clk 0:00:27]} 31. h3 {[%clk 0:00:58]}  Ng7 {[%clk 0:00:25]} 32. g4 {[%clk 0:00:57]}  hxg4 {[%clk 0:00:23]} 33. hxg4 {[%clk 0:00:58]}  Ne8 {[%clk 0:00:23]} 34. Kd4 {[%clk 0:00:53]}  Nf6 {[%clk 0:00:20]} 35. g5 {[%clk 0:00:52]}  Nh5 {[%clk 0:00:20]} 36. Ke4 {[%clk 0:00:50]}  Ke6 {[%clk 0:00:18]} 37. a4 {[%clk 0:00:49]}  f5+ {[%clk 0:00:15]} 38. gxf6 {[%clk 0:00:49]}  Nxf6+ {[%clk 0:00:16]} 39. Kf3 {[%clk 0:00:46]}  d5 {[%clk 0:00:07]} 40. cxd5+ {[%clk 0:00:35]}  Nxd5 {[%clk 0:00:08]} 41. b5 {[%clk 0:00:36]}  Ne7 {[%clk 0:00:00]} 42. Kg4 {[%clk 0:00:34]} 1-0


[Site "https://www.chess.com"]

[Event "Titled Tuesday Blitz November 07 Early 2023"]
[White "Horak, Martin"]
[Black "Matveeva, Olga"]
[WhiteFideId "367095"]
[BlackFideId "24107018"]
[WhiteElo "2519"]
[BlackElo "2412"]
[Result "1-0"]
[Round "9"]
[TimeControl "180+1"]
[Date "2023.11.07"]
[WhiteClock "0:00:52"]
[BlackClock "0:00:00"]
[Board "95"]

1. e4 {[%clk 0:03:00]}  c6 {[%clk 0:03:00]} 2. Nf3 {[%clk 0:02:59]}  d5 {[%clk 0:03:00]} 3. Nc3 {[%clk 0:02:58]}  dxe4 {[%clk 0:02:59]} 4. Nxe4 {[%clk 0:02:58]}  Nf6 {[%clk 0:02:59]} 5. Qe2 {[%clk 0:02:55]}  Nxe4 {[%clk 0:02:54]} 6. Qxe4 {[%clk 0:02:55]}  Nd7 {[%clk 0:02:53]} 7. Bc4 {[%clk 0:02:52]}  Nf6 {[%clk 0:02:53]} 8. Ne5 {[%clk 0:02:53]}  e6 {[%clk 0:02:53]} 9. Qe2 {[%clk 0:02:53]}  b5 {[%clk 0:02:52]} 10. Bd3 {[%clk 0:02:53]}  Qc7 {[%clk 0:02:51]} 11. a4 {[%clk 0:02:38]}  b4 {[%clk 0:02:41]} 12. Nxc6 {[%clk 0:02:33]}  Bd6 {[%clk 0:02:42]} 13. Nd4 {[%clk 0:02:23]}  a6 {[%clk 0:02:41]} 14. Nf5 {[%clk 0:02:21]}  Be5 {[%clk 0:02:42]} 15. Nxg7+ {[%clk 0:02:19]}  Ke7 {[%clk 0:02:27]} 16. Nh5 {[%clk 0:02:20]}  Bb7 {[%clk 0:02:12]} 17. Nxf6 {[%clk 0:02:19]}  Bxf6 {[%clk 0:02:10]} 18. Be4 {[%clk 0:02:14]}  Rhg8 {[%clk 0:02:00]} 19. O-O {[%clk 0:02:00]}  Rad8 {[%clk 0:01:46]} 20. d3 {[%clk 0:01:53]}  Qe5 {[%clk 0:01:20]} 21. Be3 {[%clk 0:01:42]}  Bxe4 {[%clk 0:00:42]} 22. dxe4 {[%clk 0:01:43]}  Rg6 {[%clk 0:00:14]} 23. f4 {[%clk 0:01:32]}  Qxb2 {[%clk 0:00:11]} 24. e5 {[%clk 0:01:33]}  Bh4 {[%clk 0:00:09]} 25. Rab1 {[%clk 0:01:25]}  Qc3 {[%clk 0:00:08]} 26. Rb3 {[%clk 0:01:23]}  Qc6 {[%clk 0:00:06]} 27. Rxb4 {[%clk 0:01:18]}  Rdg8 {[%clk 0:00:07]} 28. Qf3 {[%clk 0:00:51]}  Rxg2+ {[%clk 0:00:05]} 29. Kh1 {[%clk 0:00:51]}  Qxf3 {[%clk 0:00:02]} 30. Rxf3 {[%clk 0:00:52]}  Rxc2 {[%clk 0:00:00]} 31. Rb7+ {[%clk 0:00:52]} 1-0


[Site "https://www.chess.com"]

[Event "Titled Tuesday Blitz November 07 Early 2023"]
[White "Soumya, Swaminathan"]
[Black "Pujari, Rucha"]
[WhiteFideId "5016193"]
[BlackFideId "5024528"]
[WhiteElo "2401"]
[BlackElo "2514"]
[Result "1-0"]
[Round "9"]
[TimeControl "180+1"]
[Date "2023.11.07"]
[WhiteClock "0:00:10"]
[BlackClock "0:00:00"]
[Board "97"]

1. e4 {[%clk 0:03:00]}  e5 {[%clk 0:02:56]} 2. Nf3 {[%clk 0:03:00]}  Nc6 {[%clk 0:02:56]} 3. Bb5 {[%clk 0:03:00]}  a6 {[%clk 0:02:57]} 4. Ba4 {[%clk 0:03:01]}  Nf6 {[%clk 0:02:57]} 5. O-O {[%clk 0:03:00]}  Be7 {[%clk 0:02:58]} 6. d3 {[%clk 0:02:59]}  b5 {[%clk 0:02:58]} 7. Bb3 {[%clk 0:02:59]}  O-O {[%clk 0:02:58]} 8. a4 {[%clk 0:02:59]}  Bb7 {[%clk 0:02:54]} 9. Nc3 {[%clk 0:02:37]}  b4 {[%clk 0:02:49]} 10. Nd5 {[%clk 0:02:37]}  Na5 {[%clk 0:02:41]} 11. Nxe7+ {[%clk 0:02:27]}  Qxe7 {[%clk 0:02:42]} 12. Ba2 {[%clk 0:02:25]}  b3 {[%clk 0:02:32]} 13. cxb3 {[%clk 0:02:21]}  d5 {[%clk 0:02:22]} 14. b4 {[%clk 0:02:14]}  dxe4 {[%clk 0:02:08]} 15. dxe4 {[%clk 0:01:53]}  Rad8 {[%clk 0:01:56]} 16. Qe2 {[%clk 0:01:37]}  Nc6 {[%clk 0:01:55]} 17. b5 {[%clk 0:01:26]}  Nb4 {[%clk 0:01:36]} 18. Bg5 {[%clk 0:00:56]}  h6 {[%clk 0:01:17]} 19. Bxf6 {[%clk 0:00:53]}  Qxf6 {[%clk 0:01:18]} 20. Bc4 {[%clk 0:00:50]}  a5 {[%clk 0:01:00]} 21. Rad1 {[%clk 0:00:47]}  Qf4 {[%clk 0:00:42]} 22. Rfe1 {[%clk 0:00:27]}  Rxd1 {[%clk 0:00:39]} 23. Qxd1 {[%clk 0:00:26]}  Bxe4 {[%clk 0:00:39]} 24. Qd2 {[%clk 0:00:15]}  Qf5 {[%clk 0:00:08]} 25. Qe3 {[%clk 0:00:12]}  Bxf3 {[%clk 0:00:08]} 26. Qxf3 {[%clk 0:00:13]}  Qxf3 {[%clk 0:00:07]} 27. gxf3 {[%clk 0:00:14]}  Re8 {[%clk 0:00:05]} 28. Rd1 {[%clk 0:00:12]}  g5 {[%clk 0:00:04]} 29. Rd7 {[%clk 0:00:12]}  Kg7 {[%clk 0:00:03]} 30. Rxf7+ {[%clk 0:00:11]}  Kg6 {[%clk 0:00:03]} 31. Rxc7 {[%clk 0:00:12]}  Rd8 {[%clk 0:00:03]} 32. Kg2 {[%clk 0:00:12]}  Nc2 {[%clk 0:00:02]} 33. b6 {[%clk 0:00:11]}  Nd4 {[%clk 0:00:00]} 34. b7 {[%clk 0:00:10]} 1-0


[Site "https://www.chess.com"]